bitfinex-derivatives/quotes_SOLF0:USTF0_20250114
["timestamp","ask_amount","ask_price","bid_price","bid_amount"]
[1736860888822,2.691,185.89,185.84,8.00601379]
[1736860889427,13.64601379,185.9,185.82,2.4125]
[1736860889628,8.00601379,185.88,185.82,2.4125]
[1736860890020,8.00601379,185.88,185.82,5.1044]
[1736860890021,2.6915,185.86,185.82,5.1044]
[1736860890923,2.6915,185.85,185.82,5.1044]
[1736860891325,8.00601379,185.88,185.83,2.6918]
[1736860891627,2.6914,185.87,185.82,10.41851379]
[1736860891828,13.64601379,185.9,185.85,2.6914]
[1736860893121,2.6911,185.88,185.85,2.6914]
[1736860894623,13.64601379,185.9,185.87,2.6912]
[1736860894624,2.6908,185.9,185.87,2.6912]
[1736860894830,8.3308,185.9,185.87,2.6912]
[1736860895027,5.64,185.9,185.87,2.6912]
[1736860895430,5.64,185.9,185.88,2.691]
[1736860895628,5.64,185.9,185.86,8.00601379]
[1736860896028,5.64,185.9,185.87,2.6911]
[1736860896423,5.64,185.9,185.86,8.00601379]
[1736860896623,5.64,185.9,185.88,2.691]
[1736860897623,8.3305,185.92,185.89,2.6909]
[1736860897830,5.64,185.92,185.89,2.6909]
[1736860899831,8.3305,185.92,185.89,2.6909]
[1736860900029,5.64,185.92,185.89,2.6909]
[1736860900227,8.00601379,185.91,185.87,2.6911]
[1736860900430,10.69671379,185.91,185.84,8.00601379]
[1736860900731,8.00601379,185.91,185.88,2.691]
[1736860908237,8.00601379,185.91,185.84,8.00601379]
[1736860908432,8.3305,185.92,185.89,2.6909]
[1736860909237,14.53849028,185.92,185.89,2.6909]
[1736860910438,8.89849028,185.92,185.89,2.6909]
[1736860910737,14.53849028,185.92,185.89,2.6909]
[1736860912341,11.84799028,185.92,185.91,2.6906]
[1736860912545,6.20799028,185.92,185.91,2.6906]
[1736860912843,5.64,185.93,185.91,2.6906]
[1736860913739,5.64,185.93,185.89,2.6908]
[1736860913934,5.64,185.93,185.83,2.1778]
[1736860914140,10.69661379,185.92,185.85,8.00601379]
[1736860914440,10.69661379,185.92,185.88,2.691]
[1736860915140,16.90460407,185.92,185.89,2.6909]
[1736860917140,8.89859028,185.92,185.89,2.6909]
[1736860917543,6.20799028,185.95,185.89,8.00601379]
[1736860917744,6.20799028,185.95,185.91,8.00601379]
[1736860918141,6.20799028,185.95,185.92,2.6905]
[1736860919146,14.51799028,185.96,185.92,2.6905]
[1736860919346,14.51799028,185.96,185.93,2.6903]
[1736860919547,11.82799028,185.96,185.91,8.00601379]
[1736860919744,5.62,185.96,185.91,8.00601379]
[1736860919946,6.20799028,185.97,185.95,2.69]
[1736860920345,6.20799028,185.97,185.91,8.00601379]
[1736860920550,6.20799028,185.97,185.94,2.6902]
[1736860920741,8.00601379,185.98,185.94,2.6902]
[1736860921050,13.62601379,185.98,185.94,2.6902]
[1736860921348,13.62601379,185.98,185.9,12.48921379]
[1736860921349,8.00601379,185.96,185.9,12.48921379]
[1736860921850,10.69601379,185.96,185.92,2.6904]
[1736860923046,2.6901,185.95,185.92,2.6904]
[1736860923644,2.6903,185.94,185.9,7.174]
[1736860923850,10.69631379,185.94,185.9,7.174]
[1736860925051,10.69601379,185.96,185.9,12.48921379]
[1736860925349,2.69,185.96,185.9,12.48921379]
[1736860925952,2.6901,185.95,185.9,12.48921379]
[1736860926451,2.6901,185.95,185.92,2.6904]
[1736860928851,10.69601379,185.96,185.92,2.6904]
[1736860929858,8.00601379,185.96,185.93,2.6903]
[1736860931652,8.00601379,185.96,185.9,12.48921379]
[1736860931849,5.62,185.98,185.92,8.00601379]
[1736860932556,8.3096,185.98,185.94,2.6901]
[1736860933651,13.62601379,185.98,185.9,12.48921379]
[1736860934053,2.69,185.96,185.92,2.6904]
[1736860934255,2.69,185.96,185.9,12.48921379]
[1736860935162,2.69,185.96,185.93,2.6903]
[1736860935659,16.31571379,185.98,185.95,2.69]
[1736860935860,8.3097,185.98,185.95,2.69]
[1736860937056,5.62,185.98,185.95,2.69]
[1736860937260,10.69541379,186.0,185.96,2.6898]
[1736860937559,5.62,185.99,185.96,2.6898]
[1736860938459,8.00601379,186.0,185.96,2.6898]
[1736860938662,8.3095,185.99,185.96,2.6898]
[1736860939458,5.62,185.98,185.96,2.6898]
[1736860941359,2.6895,185.99,185.96,2.6898]
[1736860941659,5.62,185.98,185.96,2.6898]
[1736860941860,5.62,185.98,185.95,2.69]
[1736860942462,2.6895,185.99,185.95,2.69]
[1736860942660,2.6899,185.97,185.93,2.6903]
[1736860945155,16.31571379,185.98,185.94,2.6901]
[1736860945359,5.62,185.99,185.94,8.00601379]
[1736860946074,6.18778084,186.04,185.96,8.00601379]
[1736860946276,5.62,186.03,185.96,8.00601379]
[1736860946573,8.309,186.03,185.99,2.6894]
[1736860947376,8.3091,186.02,185.99,2.6894]
[1736860948375,5.62,186.02,185.99,2.6894]
[1736860948675,5.62,186.02,186.0,2.6893]
[1736860951972,5.62,186.02,185.98,8.00601379]
[1736860952178,5.62,186.02,185.99,2.6894]
[1736860955580,2.6889,186.03,185.99,2.6894]
[1736860955781,8.3089,186.03,185.99,2.6894]
[1736860955980,2.6893,186.01,185.98,8.00601379]
[1736860956380,5.62,186.03,185.98,8.00601379]
[1736860956577,8.00601379,186.02,185.98,2.6895]
[1736860956980,2.6891,186.02,185.98,2.6895]
[1736860957483,2.6891,186.02,185.99,2.6895]
[1736860959182,10.69511379,186.02,185.99,2.6895]
[1736860959382,16.31511379,186.02,185.99,2.6895]
[1736860960379,13.62601379,186.02,185.99,2.6895]
[1736860961973,5.62,186.02,185.99,2.6895]
[1736860962783,2.6889,186.03,185.99,2.6895]
[1736860964686,6.60077257,186.05,185.98,8.00601379]
[1736860964888,8.3087,186.05,186.0,8.00601379]
[1736860965187,5.62,186.06,186.0,8.00601379]
[1736860965383,16.31431379,186.07,186.0,8.00601379]
[1736860965583,16.31431379,186.07,186.02,8.00601379]
[1736860966183,8.00601379,186.07,186.03,2.6888]
[1736860966384,2.6886,186.05,186.0,8.00601379]
[1736860967683,2.6886,186.05,186.02,2.6889]
[1736860967879,13.62601379,186.07,186.0,8.00601379]
[1736860968887,2.6886,186.06,186.02,2.689]
[1736860970879,2.6886,186.06,186.03,2.6889]
[1736860971083,13.62601379,186.07,186.0,8.00601379]
[1736860971480,13.62601379,186.07,186.05,2.6886]
[1736860971481,8.00601379,186.07,186.05,2.6886]
[1736860971988,8.3082,186.08,186.05,2.6886]
[1736860972590,2.6882,186.08,186.05,2.6886]
[1736860972785,13.62601379,186.09,186.05,2.6886]
[1736860972786,16.31411379,186.09,186.05,2.6886]
[1736860973687,16.31411379,186.09,186.02,8.00601379]
[1736860973885,16.31411379,186.09,186.06,2.6884]
[1736860974085,13.62601379,186.09,186.06,2.6884]
[1736860974693,8.00601379,186.09,186.06,2.6884]
[1736860977092,8.00601379,186.07,185.98,2.2327]
[1736860977296,8.00601379,186.05,185.98,10.23871379]
[1736860978396,10.69471379,186.05,186.01,2.6891]
[1736860979394,2.6888,186.04,186.01,2.6891]
[1736860981698,2.6889,186.03,186.01,2.6891]
[1736860984796,2.6888,186.04,186.01,2.6891]
[1736860986307,8.00601379,186.05,185.99,5.50331886]
[1736860986506,8.00601379,186.03,185.99,5.50331886]
[1736860986709,8.00601379,186.01,185.99,5.50331886]
[1736860987002,2.6893,186.0,185.99,5.50331886]
[1736860990112,2.6893,186.0,185.96,2.6899]
[1736860992909,10.69521379,186.01,185.97,2.6897]
[1736860993108,8.00601379,186.01,185.97,2.6897]
[1736860993715,2.6894,186.0,185.97,2.6897]
[1736860995816,8.00601379,186.01,185.95,2.69]
[1736860996313,2.6896,185.98,185.95,2.69]
[1736860997212,2.6896,185.98,185.94,8.00601379]
[1736860997516,2.6896,185.98,185.96,2.6899]
[1736861000821,2.6898,185.97,185.94,2.6901]
[1736861001023,2.6898,185.97,185.92,2.2274]
[1736861001024,8.00601379,185.97,185.92,2.2274]
[1736861001219,2.6902,185.94,185.92,2.6904]
[1736861002622,8.00601379,185.95,185.92,2.6904]
[1736861002821,10.69611379,185.95,185.92,2.6904]
[1736861003217,16.31611379,185.95,185.92,2.6904]
[1736861003526,8.00601379,185.93,185.84,2.2949]
[1736861003722,8.00601379,185.91,185.84,10.30091379]
[1736861004025,8.00601379,185.91,185.86,2.6913]
[1736861004321,8.00601379,185.89,185.8,7.80771695]
[1736861004525,2.6913,185.87,185.83,2.6917]
[1736861005425,2.6913,185.87,185.83,10.69771379]
[1736861006224,8.3111,185.88,185.84,2.6915]
[1736861007022,5.62,185.88,185.84,2.6915]
[1736861007223,2.6912,185.87,185.84,2.6915]
[1736861009421,5.62,185.88,185.86,2.6914]
[1736861013021,5.62,185.88,185.83,8.00601379]
[1736861013225,5.62,185.88,185.85,2.6915]
[1736861013826,5.62,185.88,185.83,8.00601379]
[1736861014015,5.62,185.88,185.86,2.6913]
[1736861014416,5.62,185.88,185.85,2.6915]
[1736861014823,5.62,185.88,185.83,8.00601379]
[1736861015326,5.62,185.88,185.86,2.6913]
[1736861016828,2.6915,185.86,185.82,2.6919]
[1736861017423,2.6912,185.87,185.84,2.6916]
[1736861017623,5.62,185.88,185.84,2.6916]
[1736861019333,8.3111,185.88,185.84,2.6916]
[1736861022535,8.00601379,185.87,185.84,2.6916]
[1736861022731,10.69721379,185.87,185.84,2.6916]
[1736861023431,2.6912,185.87,185.84,2.6916]
[1736861023830,10.69721379,185.87,185.84,2.6916]
[1736861027135,5.62,185.88,185.85,2.6914]
[1736861027334,5.62,185.88,185.83,8.00601379]
[1736861027734,5.62,185.88,185.86,2.6913]
[1736861028333,8.00601379,185.9,185.86,2.6913]
[1736861028536,5.62,185.88,185.86,2.6913]
[1736861029133,10.69651379,185.92,185.85,8.00601379]
[1736861029335,5.62,185.91,185.85,8.00601379]
[1736861029937,8.3107,185.91,185.87,2.6911]
[1736861030142,2.6907,185.91,185.87,2.6911]
[1736861030337,8.3107,185.91,185.87,2.6911]
[1736861030539,5.62,185.91,185.87,8.00601379]
[1736861031037,5.62,185.91,185.8,7.80771695]
[1736861031344,5.62,185.91,185.88,8.00601379]
[1736861031538,2.6904,185.93,185.89,2.6908]
[1736861031738,16.31621379,185.94,185.88,8.00601379]
[1736861032143,8.00601379,185.94,185.88,8.00601379]
[1736861032941,8.3101,185.95,185.91,2.6906]
[1736861033141,8.00601379,185.94,185.91,2.6906]
[1736861035233,8.00601379,185.94,185.89,2.2622]
[1736861035434,2.6901,185.95,185.89,2.2622]
[1736861035840,2.6901,185.95,185.92,2.6905]
[1736861036238,2.6901,185.95,185.9,8.00601379]
[1736861036540,2.6901,185.95,185.91,2.6905]
[1736861039141,8.00601379,185.94,185.9,2.6907]
[1736861039346,8.00601379,185.92,185.85,8.00601379]
[1736861039839,8.00601379,185.9,185.88,2.691]
[1736861040246,2.6906,185.91,185.88,2.691]
[1736861040440,8.00601379,185.92,185.88,2.691]
[1736861040643,8.00601379,185.94,185.87,8.00601379]
[1736861040842,10.69621379,185.94,185.87,8.00601379]
[1736861041237,2.6904,185.93,185.9,2.6907]
[1736861041441,8.00601379,185.92,185.85,8.00601379]
[1736861041947,2.6911,185.88,185.85,2.6915]
[1736861042143,8.00601379,185.88,185.83,8.00601379]
[1736861042348,8.00601379,185.88,185.82,2.3643]
[1736861043244,2.6914,185.86,185.83,2.6918]
[1736861043549,8.00601379,185.88,185.83,2.6918]
[1736861043743,2.6913,185.87,185.83,2.6918]
[1736861043938,8.00601379,185.88,185.83,8.00601379]
[1736861044247,5.62,185.89,185.83,8.00601379]
[1736861044449,8.311,185.89,185.83,8.00601379]
[1736861044845,8.311,185.89,185.85,2.6914]
[1736861045942,8.00601379,185.88,185.85,2.6914]
[1736861047449,2.6912,185.87,185.83,2.6917]
[1736861049443,8.00601379,185.86,185.8,5.50851695]
[1736861050148,8.00601379,185.84,185.8,5.50851695]
[1736861050645,10.69781379,185.84,185.81,2.6921]
[1736861051450,8.00601379,185.82,185.74,2.3166]
[1736861051654,10.69801379,185.82,185.74,2.3166]
[1736861051950,16.31801379,185.82,185.75,8.00601379]
[1736861052555,16.31801379,185.82,185.78,2.6924]
[1736861053048,2.6921,185.81,185.78,2.6924]
[1736861055645,2.6924,185.8,185.77,2.6926]
[1736861058348,2.6924,185.8,185.77,10.69861379]
[1736861058556,191.0,185.87,185.79,8.00601379]
[1736861058748,8.00601379,185.85,185.79,8.00601379]
[1736861059442,2.6917,185.84,185.81,2.692]
[1736861059646,13.62601379,185.86,185.79,8.00601379]
[1736861060048,2.6916,185.85,185.81,2.6921]
[1736861060551,2.6916,185.85,185.79,8.00601379]
[1736861061552,2.6916,185.85,185.81,2.692]
[1736861062352,2.6916,185.85,185.79,8.00601379]
[1736861062851,8.00601379,185.84,185.81,2.692]
[1736861063354,8.00601379,185.84,185.82,2.6919]
[1736861063855,5.62,185.85,185.81,8.00601379]
[1736861064152,5.62,185.85,185.83,2.6917]
[1736861064352,5.62,185.85,185.79,8.00601379]
[1736861064551,8.00601379,185.84,185.81,2.692]
[1736861065049,8.00601379,185.84,185.73,2.2656]
[1736861065356,8.00601379,185.82,185.78,2.6924]
[1736861065850,8.00601379,185.82,185.73,2.2656]
[1736861066048,8.00601379,185.8,185.74,8.00601379]
[1736861067156,2.6924,185.79,185.75,2.6929]
[1736861071351,2.6924,185.79,185.74,8.00601379]
[1736861071551,2.6924,185.79,185.76,2.6928]
[1736861084573,8.00601379,185.8,185.77,2.6927]
[1736861086468,10.69821379,185.8,185.77,2.6927]
[1736861087971,2.6924,185.79,185.75,2.6929]
[1736861088373,2.6924,185.79,185.73,10.27161379]
[1736861088573,2.6924,185.79,185.73,2.2656]
[1736861088777,2.6924,185.79,185.73,10.27161379]
[1736861089166,8.00601379,185.78,185.7,2.3241]
[1736861089373,8.00601379,185.76,185.7,2.3241]
[1736861089971,8.00601379,185.76,185.68,8.00601379]
[1736861090176,8.00601379,185.7,185.61,9.82413384]
[1736861090366,5.62,185.7,185.61,17.83014763]
[1736861090569,5.62,185.75,185.67,8.00601379]
[1736861090775,8.00601379,185.74,185.67,8.00601379]
[1736861090975,8.00601379,185.74,185.68,2.2462]
[1736861091175,8.00601379,185.74,185.71,2.6935]
[1736861091576,5.62,185.75,185.69,8.00601379]
[1736861091777,13.62601379,185.75,185.72,2.6933]
[1736861091979,13.62601379,185.75,185.69,8.00601379]
[1736861092171,13.62601379,185.75,185.72,2.6933]
[1736861093474,5.62,185.75,185.73,2.6932]
[1736861093775,191.0,185.81,185.73,8.00601379]
[1736861093972,5.62,185.8,185.76,2.6928]
[1736861094475,5.62,185.8,185.75,8.00601379]
[1736861094676,204.62601379,185.81,185.75,8.00601379]
[1736861094878,8.00601379,185.79,185.73,8.00601379]
[1736861095579,207.31821379,185.81,185.76,2.6928]
[1736861096379,16.31821379,185.81,185.77,2.6926]
[1736861096580,2.6923,185.8,185.75,8.00601379]
[1736861096875,8.00601379,185.79,185.73,8.00601379]
[1736861097081,8.00601379,185.79,185.76,2.6928]
[1736861097380,2.6923,185.8,185.76,2.6928]
[1736861100376,16.31811379,185.81,185.77,2.6926]
[1736861100677,5.62,185.82,185.77,8.00601379]
[1736861100982,8.312,185.82,185.77,8.00601379]
[1736861101182,5.62,185.82,185.77,8.00601379]
[1736861101480,5.62,185.82,185.75,8.00601379]
[1736861101980,5.62,185.82,185.77,2.6926]
[1736861101981,2.6921,185.81,185.77,2.6926]
[1736861102183,5.62,185.82,185.77,8.00601379]
[1736861102782,5.62,185.82,185.79,2.6923]
[1736861103081,5.62,185.82,185.77,8.00601379]
[1736861103281,5.62,185.82,185.8,2.6922]
[1736861103776,8.00601379,185.83,185.8,2.6922]
[1736861103975,8.3117,185.84,185.8,2.6922]
[1736861104372,199.3113,185.87,185.81,8.00601379]
[1736861104582,199.00601379,185.87,185.81,8.00601379]
[1736861104782,204.62601379,185.87,185.81,8.00601379]
[1736861105374,199.00601379,185.87,185.83,2.6917]
[1736861106078,201.69731379,185.87,185.83,2.6917]
[1736861106278,5.62,185.88,185.84,2.6915]
[1736861106279,8.00601379,185.88,185.84,2.6915]
[1736861106473,10.69711379,185.88,185.81,8.00601379]
[1736861106973,10.69711379,185.88,185.84,2.6916]
[1736861108084,10.69741379,185.86,185.82,2.6919]
[1736861108277,8.00601379,185.86,185.79,12.46611379]
[1736861108678,2.6916,185.85,185.81,2.692]
[1736861108980,2.6916,185.85,185.79,12.46611379]
[1736861110087,2.6916,185.85,185.82,2.6919]
[1736861110385,10.69741379,185.86,185.79,12.46611379]
[1736861110685,10.69741379,185.86,185.81,8.00601379]
[1736861110887,10.69741379,185.86,185.83,2.6918]
[1736861111088,2.6915,185.85,185.81,8.00601379]
[1736861112080,2.6915,185.85,185.82,2.6918]
[1736861112284,10.69771379,185.84,185.79,4.4601]
[1736861112686,2.6917,185.84,185.8,8.00601379]
[1736861112888,2.6917,185.84,185.81,2.6921]
[1736861113088,2.6915,185.85,185.8,8.00601379]
[1736861113289,8.00601379,185.86,185.8,8.00601379]
[1736861113588,2.6915,185.85,185.8,8.00601379]
[1736861114290,2.6915,185.85,185.82,2.6919]
[1736861116086,10.69741379,185.86,185.83,2.6917]
[1736861116686,2.6914,185.86,185.83,2.6917]
[1736861116895,9.53522779,185.89,185.85,2.6915]
[1736861117290,8.311,185.89,185.85,2.6915]
[1736861117492,5.62,185.89,185.86,2.6913]
[1736861117688,13.62601379,185.9,185.86,2.6913]
[1736861117894,10.69691379,185.9,185.84,8.00601379]
[1736861118096,5.62,185.9,185.87,2.6911]
[1736861118495,193.6907,185.91,185.87,2.6911]
[1736861120494,1.6502,185.97,185.89,2.6909]
[1736861120495,13.62601379,185.93,185.89,2.6909]
[1736861122095,2.6905,185.92,185.89,2.6909]
[1736861122498,13.62601379,185.93,185.88,2.691]
[1736861122699,8.00601379,185.89,185.79,4.4601]
[1736861122898,8.00601379,185.89,185.83,8.00601379]
[1736861123201,10.69701379,185.89,185.85,2.6914]
[1736861123599,10.69701379,185.89,185.83,8.00601379]
[1736861124096,10.69671379,185.91,185.85,8.00601379]
[1736861124596,2.6907,185.91,185.88,2.691]
[1736861125196,16.31651379,185.93,185.9,2.6908]
[1736861125398,13.62601379,185.93,185.9,2.6908]
[1736861125802,2.6902,185.94,185.89,8.00601379]
[1736861126801,2.6902,185.94,185.9,2.6907]
[1736861126997,13.62601379,185.95,185.89,8.00601379]
[1736861127199,2.6905,185.92,185.87,8.00601379]
[1736861128100,2.6905,185.92,185.89,2.6909]
[1736861128402,2.6907,185.91,185.85,8.00601379]
[1736861128803,2.6907,185.91,185.87,2.6911]
[1736861129200,2.6908,185.9,185.87,2.6911]
[1736861131398,2.6907,185.91,185.87,2.6911]
[1736861131703,8.00601379,185.93,185.85,8.00601379]
[1736861131903,8.00601379,185.89,185.85,2.6914]
[1736861132104,2.6912,185.88,185.82,13.51397996]
[1736861132501,2.6912,185.88,185.84,2.6916]
[1736861132901,2.6912,185.88,185.82,13.51397996]
[1736861133109,2.6912,185.88,185.85,2.6915]
[1736861135005,2.691,185.89,185.85,2.6915]
[1736861136004,2.691,185.89,185.86,2.6913]
[1736861145309,2.691,185.89,185.86,10.69731379]
[1736861146211,2.691,185.89,185.86,2.6913]
[1736861149712,5.62,185.91,185.86,8.00601379]
[1736861149918,14.19005955,185.94,185.88,8.00601379]
[1736861150113,5.62,185.93,185.86,8.00601379]
[1736861150322,8.00601379,185.88,185.82,13.51397996]
[1736861150524,8.00601379,185.88,185.82,5.50796617]
[1736861150816,5.62,185.93,185.82,8.19986617]
[1736861150817,10.69751379,185.86,185.82,8.19986617]
[1736861155622,2.6915,185.86,185.82,16.20587996]
[1736861161032,8.00601379,185.91,185.84,8.00601379]
[1736861161829,8.00601379,185.91,185.85,2.6915]
[1736861162730,5.62,185.9,185.85,2.6915]
[1736861163029,8.3108,185.9,185.86,2.6913]
[1736861163734,8.3108,185.9,185.82,5.50796617]
[1736861163735,8.00601379,185.88,185.82,5.50796617]
[1736861164330,2.6915,185.86,185.82,5.50796617]
[1736861164536,8.00601379,185.88,185.82,5.50796617]
[1736861165537,2.6915,185.86,185.82,8.19986617]
[1736861166437,2.6915,185.85,185.82,8.19986617]
[1736861168139,8.00601379,185.86,185.82,5.50796617]
[1736861168340,2.6917,185.84,185.82,5.50796617]
[1736861169837,2.6914,185.86,185.82,8.19986617]
[1736861170035,8.00601379,185.88,185.82,8.19986617]
[1736861170542,8.00601379,185.86,185.82,5.50796617]
[1736861170930,8.00601379,185.84,185.78,2.1989]
[1736861171130,2.6923,185.8,185.78,2.1989]
[1736861172444,5.62,185.83,185.79,8.00601379]
[1736861173039,8.3118,185.83,185.79,10.69831379]
[1736861176346,8.3117,185.84,185.81,10.69811379]
[1736861177444,8.3117,185.84,185.8,2.6922]
[1736861177837,5.62,185.84,185.8,2.6922]
[1736861178042,2.6918,185.83,185.79,5.0435]
[1736861179346,10.69781379,185.83,185.79,5.0435]
[1736861181659,2.6918,185.83,185.79,5.0435]
[1736861181839,2.6918,185.83,185.8,2.6922]
[1736861186358,8.3117,185.84,185.8,2.6922]
[1736861187056,5.62,185.84,185.8,2.6922]
[1736861187256,2.6918,185.83,185.8,2.6922]
[1736861187454,5.62,185.84,185.8,2.6922]
[1736861188456,13.62601379,185.84,185.8,2.6922]
[1736861188857,5.62,185.84,185.8,2.6922]
[1736861189061,2.6918,185.83,185.8,2.6922]
[1736861195865,16.31771379,185.84,185.8,2.6922]
[1736861197168,8.3117,185.84,185.8,2.6922]
[1736861198367,16.31771379,185.84,185.8,2.6922]
[1736861201067,16.31771379,185.84,185.79,2.3512]
[1736861201068,2.6919,185.82,185.79,2.3512]
[1736861201264,13.62601379,185.84,185.79,2.3512]
[1736861201661,5.62,185.84,185.71,62.20106043]
[1736861201867,8.00601379,185.8,185.72,12.62821379]
[1736861202067,10.69881379,185.76,185.72,7.3155]
[1736861202264,191.0,185.83,185.68,7.47603384]
[1736861202265,8.00601379,185.74,185.68,7.47603384]
[1736861202470,13.60601379,185.74,185.68,7.47603384]
[1736861203267,13.60601379,185.74,185.67,96.62821379]
[1736861204170,2.6933,185.73,185.69,2.6938]
[1736861209273,2.6938,185.7,185.63,59.97602114]
[1736861209473,8.00601379,185.72,185.65,8.00601379]
[1736861209874,2.6938,185.7,185.66,2.6942]
[1736861210271,2.6938,185.7,185.66,8.00601379]
[1736861210474,191.0,185.73,185.68,8.00601379]
[1736861211073,191.0,185.73,185.61,4.6965]
[1736861211380,199.00601379,185.73,185.67,8.00601379]
[1736861211571,2.6935,185.72,185.68,2.6939]
[1736861211978,2.6935,185.72,185.67,8.00601379]
[1736861212278,5.6,185.74,185.67,8.00601379]
[1736861212479,5.6,185.74,185.7,2.6936]
[1736861213475,5.6,185.74,185.71,2.6935]
[1736861214584,5.6,185.74,185.72,2.6934]
[1736861216280,10.69891379,185.76,185.72,2.6934]
[1736861216470,5.62,185.75,185.72,2.6934]
[1736861217180,5.62,185.75,185.73,2.6932]
[1736861218277,2.6927,185.77,185.73,2.6932]
[1736861218479,5.62,185.76,185.74,2.6931]
[1736861219997,5.62,185.76,185.73,10.69921379]
[1736861220988,2.6936,185.71,185.67,7.2617]
[1736861221190,5.62,185.76,185.65,8.00601379]
[1736861221394,8.00601379,185.72,185.65,8.00601379]
[1736861221597,2.6936,185.71,185.66,2.6942]
[1736861222589,8.00601379,185.72,185.65,8.00601379]
[1736861222991,8.00601379,185.72,185.64,10.70041379]
[1736861223195,2.6941,185.68,185.64,10.70041379]
[1736861226095,2.6941,185.68,185.64,2.6944]
[1736861227698,2.6941,185.68,185.65,2.6943]
[1736861228802,5.62,185.69,185.61,6.8673]
[1736861228994,2.6942,185.67,185.63,2.6946]
[1736861229194,8.00601379,185.68,185.62,8.00601379]
[1736861229396,10.70001379,185.68,185.64,2.6944]
[1736861229594,10.70001379,185.68,185.62,8.00601379]
[1736861229595,2.694,185.68,185.62,8.00601379]
[1736861229795,2.694,185.68,185.64,8.00601379]
[1736861229996,2.694,185.68,185.61,6.8673]
[1736861230199,2.694,185.68,185.64,8.00601379]
[1736861230393,8.3138,185.69,185.65,2.6943]
[1736861230700,5.62,185.69,185.64,8.00601379]
[1736861231197,5.62,185.69,185.66,2.6942]
[1736861232502,5.62,185.69,185.68,2.694]
[1736861232704,5.62,185.69,185.68,10.70001379]
[1736861232896,5.62,185.74,185.68,8.00601379]
[1736861233697,5.62,185.74,185.71,2.6935]
[1736861234093,8.00601379,185.73,185.68,8.00601379]
[1736861234298,8.00601379,185.73,185.66,8.00601379]
[1736861234802,8.00601379,185.71,185.66,8.00601379]
[1736861236100,10.69951379,185.71,185.67,2.694]
[1736861236401,8.00601379,185.71,185.66,8.00601379]
[1736861236604,2.6938,185.7,185.66,8.00601379]
[1736861237703,2.6938,185.7,185.66,10.70021379]
[1736861239699,5.62,185.74,185.66,8.00601379]
[1736861239904,13.62601379,185.74,185.66,8.00601379]
[1736861240096,13.62601379,185.74,185.68,8.00601379]
[1736861240497,8.3134,185.73,185.69,2.6938]
[1736861241504,2.6934,185.72,185.69,2.6938]
[1736861241908,2.6934,185.72,185.68,10.69991379]
[1736861244408,2.6934,185.72,185.68,2.6939]
[1736861246409,2.6934,185.72,185.66,8.00601379]
[1736861246607,2.6934,185.72,185.69,2.6938]
[1736861247609,5.62,185.73,185.68,8.00601379]
[1736861247811,8.3133,185.73,185.7,2.6937]
[1736861248708,8.3133,185.73,185.64,5.50778945]
[1736861248910,8.3133,185.73,185.69,2.6938]
[1736861250108,8.3133,185.73,185.68,8.00601379]
[1736861250311,8.3133,185.73,185.7,2.6936]
[1736861250312,5.62,185.73,185.7,2.6936]
[1736861251010,8.3133,185.73,185.7,2.6936]
[1736861255914,5.62,185.73,185.7,2.6936]
[1736861257721,8.3133,185.73,185.7,2.6936]
[1736861258418,8.3133,185.73,185.65,2.2656]
[1736861258620,8.3133,185.73,185.69,2.6938]
[1736861263324,8.2933,185.73,185.67,8.00601379]
[1736861263620,5.6,185.75,185.71,2.6935]
[1736861264321,2.693,185.75,185.71,2.6935]
[1736861267927,10.69911379,185.74,185.71,2.6935]
[1736861268126,8.00601379,185.72,185.68,2.3232]
[1736861268927,8.00601379,185.74,185.68,2.3232]
[1736861269118,2.6933,185.73,185.69,2.6938]
[1736861271322,10.69941379,185.72,185.67,2.694]
[1736861271525,8.00601379,185.7,185.67,2.694]
[1736861271717,8.00601379,185.68,185.64,5.50778945]